Workbook

Sheet Лист1
A1: Школа | C1: МБОУ "СОШ №26" НМР РТ | F1: Согласование: | G1: должность | H1: Директор
G2: фамилия | H2: Хайруллина Ч.М.
A3: Возрастная категория | E3: 7-11 лет | G3: дата | H3: 22 | I3: 1 | J3: 2024
H4: день | I4: месяц | J4: год
A5: Неделя | B5: День недели | C5: Прием пищи | D5: Раздел меню | E5: Блюда | F5: Вес блюда, г | G5: Белки | H5: Жиры | I5: Углеводы | J5: Калорийность | K5: № рецептуры | L5: Цена
A6: 1 | B6: 1 | C6: Завтрак | D6: хлеб бел. | E6: Печенье | F6: 40 | G6: 2.96 | H6: 3.76 | I6: 10.84 | J6: 124.28 | L6: 39.05
C7: (младшие) | D7: хлеб бел. | E7: Батон нарезной | F7: 75 | G7: 5.6 | H7: 2.16 | I7: 35.36 | J7: 195.52
D8: гор.блюдо | E8: Каша "Дружба" молочная с маслом сливочным | F8: 185 | G8: 6.44 | H8: 9.16 | I8: 15.23 | J8: 141.12
D9: гор.напиток | E9: Чай с сахаром | F9: 200 | G9: 0.07 | H9: 0.02 | I9: 8 | J9: 32
D12: итого | F12: =F6+F7+F8+F9 -> 500 | G12: =SUM(G6:G11) -> 15.07 | H12: =SUM(H6:H11) -> 15.1 | I12: =SUM(I6:I11) -> 69.43 | J12: =SUM(J6:J11) -> 492.92 | L12: =SUM(L6:L11) -> 39.05
A13: =A6 -> 1 | B13: =B6 -> 1 | C13: Обед | D13: 1 блюдо | E13: Щи из свежей капусты с картофелем, со сметаной | F13: 205 | G13: 7.54 | H13: 11.91 | I13: 6.5 | J13: 153.9 | L13: 119.71
C14: (младшие) | D14: 2 блюдо | E14: Котлеты Домашние с гречкой | F14: 90 | G14: 8.01 | H14: 11.14 | I14: 35.71 | J14: 248
D15: гарнир | E15: Макаронные изделия отварные с маслом сливочным | F15: 153 | G15: 5.68 | H15: 2.88 | I15: 31.96 | J15: 176.1
D16: напиток | E16: Напиток из сухофруктов | F16: 200 | G16: 0.7 | H16: 0.1 | I16: 22.03 | J16: 92.9
D17: хлеб бел. | E17: Хлеб пшеничный | F17: 25 | G17: 1.9 | H17: 0.2 | I17: 12.3 | J17: 58.75
D18: хлеб черн. | E18: Хлеб дарницкий | F18: 30 | G18: 1.98 | H18: 0.36 | I18: 11.88 | J18: 59.4
D21: итого | F21: 703 | G21: =SUM(G13:G20) -> 25.81 | H21: =SUM(H13:H20) -> 26.59 | I21: =SUM(I13:I20) -> 120.38 | J21: =SUM(J13:J20) -> 789.05 | L21: =SUM(L13:L20) -> 119.71
A22: =A6 -> 1 | B22: =B6 -> 1 | C22: Итого за день: | F22: =F12+F21 -> 1203 | G22: =G12+G21 -> 40.88 | H22: =H12+H21 -> 41.69 | I22: =I12+I21 -> 189.81 | J22: =J12+J21 -> 1281.97
